fUSD/lending_fUSD_20240421
["ID","MTS","AMOUNT","RATE_DAILY","PERIOD"]
[323104725,1713665451849,-500.0,0.00018645,2]
[323104726,1713665451859,-500.0,0.00018645,2]
[323104727,1713665451869,-500.0,0.00018645,2]
[323104728,1713665451879,-500.0,0.00018645,2]
[323104729,1713665451889,-500.0,0.00018645,2]
[323104730,1713665451899,-576.75446738,0.00018645,2]
[323104731,1713665451908,-500.0,0.00018645,2]
[323104732,1713665451918,-500.0,0.00018645,2]
[323104733,1713665451927,-607.73,0.00018645,2]
[323104734,1713665451936,-500.0,0.00018645,2]
[323104735,1713665451945,-500.0,0.00018645,2]
[323104736,1713665451955,-685.140674,0.00018645,2]
[323104737,1713665451964,-685.140674,0.00018645,2]
[323104738,1713665451974,-500.0,0.00018645,2]
[323104739,1713665451984,-1000.24,0.00018645,2]
[323104740,1713665451994,-363.59,0.00018645,2]
[323104741,1713665452003,-500.0,0.00018645,2]
[323104742,1713665452012,-500.0,0.00018645,2]
[323104743,1713665452025,-500.0,0.00018645,2]
[323104744,1713665452034,-151.0,0.00018646,2]
[323104745,1713665452044,-151.0,0.00018646,2]
[323104746,1713665452053,-705.12,0.00018646,2]
[323104747,1713665452063,-782.41086,0.00018646,2]
[323104748,1713665452072,-1024.0,0.00018658,2]
[323104749,1713665452081,-1346.3753775,0.00018767,2]
[323104750,1713665452091,-3287.0,0.000188,2]
[323104751,1713665452102,-171.58313821,0.00018818,2]
[323104752,1713665452111,-3974.29069948,0.0001882,2]
[323104753,1713665452120,-756.0,0.000189,2]
[323104754,1713665452130,-1600.0,0.000189,6]
[323104755,1713665452139,-800.0,0.00018904,2]
[323104756,1713665452148,-536.0,0.00018904,2]
[323104757,1713665452157,-500.0,0.00018918,2]
[323104758,1713665452167,-231.75548961,0.00018918,2]
[323104759,1713665452175,-500.0,0.00018918,2]
[323104760,1713665452184,-1311.09,0.00018918,2]
[323104761,1713665452193,-500.0,0.00018918,2]
[323104762,1713665452202,-694.04,0.00018918,2]
[323104763,1713665452211,-4992.93,0.00018918,2]
[323104764,1713665452220,-3093.23,0.00018918,2]
[323104765,1713665452229,-500.0,0.00018918,2]
[323104766,1713665452239,-976.6,0.00018918,2]
[323104767,1713665452249,-500.0,0.00018918,2]
[323104768,1713665452258,-500.0,0.00018918,2]
[323104769,1713665452267,-616.89,0.00018918,2]
[323104770,1713665452276,-500.0,0.00018918,2]
[323104771,1713665452285,-500.0,0.00018918,2]
[323104772,1713665452294,-500.0,0.00018918,2]
[323104773,1713665452303,-500.0,0.00018918,2]
[323104774,1713665452312,-500.0,0.00018918,2]
[323104775,1713665452321,-500.0,0.00018918,2]
[323104776,1713665452330,-500.0,0.00018918,2]
[323104777,1713665452339,-500.0,0.00018918,2]
[323104778,1713665452348,-956.72,0.00018918,2]
[323104779,1713665452357,-599.15,0.00018918,2]
[323104780,1713665452365,-2282.44,0.00018918,2]
[323104781,1713665452374,-500.0,0.00018918,2]
[323104782,1713665452383,-500.0,0.00018918,2]
[323104783,1713665452391,-1350.35,0.00018918,2]
[323104784,1713665452400,-627.45,0.00018918,2]
[323104785,1713665452409,-1020.81,0.00018918,2]
[323104786,1713665452418,-500.0,0.00018918,2]
[323104787,1713665452427,-500.0,0.00018918,2]
[323104788,1713665452436,-500.0,0.00018918,2]
[323104789,1713665452445,-1075.71,0.00018918,2]
[323104790,1713665452454,-3774.39,0.00018918,2]
[323104791,1713665452463,-1906.36,0.00018918,2]
[323104792,1713665452472,-719.06,0.00018918,2]
[323104793,1713665452482,-500.0,0.00018918,2]
[323104794,1713665452491,-500.0,0.00018918,2]
[323104795,1713665452501,-1015.18,0.00018918,2]
[323104796,1713665452510,-500.0,0.00018918,2]
[323104797,1713665452519,-589.9,0.00018918,2]
[323104798,1713665452528,-500.0,0.00018918,2]
[323104799,1713665452537,-801.68,0.00018918,2]
[323104800,1713665452547,-500.0,0.00018918,2]
[323104801,1713665452556,-500.0,0.00018918,2]
[323104802,1713665452565,-3794.57,0.00018918,2]
[323104803,1713665452575,-500.0,0.00018918,2]
[323104804,1713665452584,-525.27,0.00018918,2]
[323104805,1713665452592,-788.76,0.00018918,2]
[323104806,1713665452601,-475.10749523,0.00018918,2]
[323104807,1713665452611,-1443.27,0.00018918,2]
[323104808,1713665452620,-500.0,0.00018918,2]
[323104809,1713665452629,-500.0,0.00018918,2]
[323104810,1713665452638,-500.0,0.00018918,2]
[323104811,1713665452647,-705.82,0.00018918,2]
[323104812,1713665452656,-608.24,0.00018918,2]
[323104813,1713665452665,-631.31,0.00018918,2]
[323104814,1713665452675,-567.23,0.00018918,2]
[323104815,1713665452684,-500.0,0.00018918,2]
[323104816,1713665452692,-500.0,0.00018918,2]
[323104817,1713665452702,-500.0,0.00018918,2]
[323104818,1713665452711,-500.0,0.00018918,2]
[323104819,1713665452721,-570.35,0.00018918,2]
[323104820,1713665452730,-324.94760573,0.00018918,2]
[323104821,1713665452740,-500.0,0.00018918,2]
[323104822,1713665452754,-500.0,0.00018918,2]
[323104823,1713665452767,-963.71,0.00018918,2]
[323104824,1713665452779,-895.15,0.00018918,2]
[323104825,1713665452792,-500.0,0.00018918,2]
[323104826,1713665452802,-500.0,0.00018918,2]
[323104827,1713665452813,-500.0,0.00018918,2]
[323104828,1713665452825,-500.0,0.00018918,2]
[323104829,1713665452837,-500.0,0.00018918,2]
[323104830,1713665452848,-500.0,0.00018919,2]
[323104831,1713665452861,-970.04,0.00018919,2]
[323104832,1713665452873,-18.2588672,0.00018919,2]
[323104833,1713665452892,-1007.3811328,0.00018919,2]
[323104834,1713665452904,-500.0,0.00018919,2]
[323104835,1713665452915,-91.23037856,0.00018919,2]
[323104836,1713665452927,-327.50094504,0.00018919,2]
[323104837,1713665452972,-1389.12,0.00017274,2]
[323104838,1713665452984,-1500.0,0.00018111,2]
[323104839,1713665452995,-55.87999991,0.00018919,2]
[323104840,1713665453410,-500.0,0.00017,2]
[323104841,1713665453421,-1389.12,0.00017548,2]
[323104842,1713665453432,-1389.12,0.00017822,2]
[323104843,1713665453443,-1389.12,0.00018096,2]
[323104844,1713665453454,-1389.12,0.0001837,2]
[323104845,1713665453465,-1389.12,0.00018644,2]
[323104846,1713665453476,-1389.12,0.00018918,2]
[323104847,1713665453487,-267.99867649,0.00018919,2]
[323104848,1713665453499,-500.0,0.00018919,2]
[323104849,1713665453510,-500.0,0.00018919,2]
[323104850,1713665453520,-500.0,0.00018919,2]
[323104851,1713665453530,-500.0,0.00018919,2]
[323104852,1713665453541,-500.0,0.00018919,2]
[323104853,1713665453552,-500.0,0.00018919,2]
[323104854,1713665453562,-500.0,0.00018919,2]
[323104855,1713665453573,-251.69520901,0.00018919,2]
[323104856,1713665453584,-607.73,0.00018919,2]
[323104857,1713665453595,-500.0,0.00018919,2]
[323104858,1713665453606,-371.04833803,0.00018919,2]
[323104859,1713665453617,-500.0,0.00018919,2]
[323104860,1713665453628,-1000.24,0.00018919,2]
[323104861,1713665453638,-500.0,0.00018919,2]
[323104862,1713665453649,-500.0,0.00018919,2]
[323104863,1713665453660,-500.0,0.00018919,2]
[323104864,1713665453671,-705.12,0.0001892,2]
[323104865,1713665453682,-151.0,0.00018965,2]
[323104866,1713665453693,-16969.9513255,0.00018997,2]
[323104867,1713665453704,-166.177235,0.00018997,2]
[323104868,1713665453715,-214.11084823,0.00019,2]
[323104869,1713665453726,-299.28871301,0.00019,2]
[323104870,1713665453738,-5000.0,0.00019,2]
[323104871,1713665453749,-152.269161,0.00019,2]
[323104872,1713665453761,-1455.8582585,0.00019005,2]
[323104873,1713665453772,-3974.29069948,0.00019009,2]
[323104874,1713665453783,-155.13176181,0.00019048,2]
[323104875,1713665453795,-30658.12330908,0.00019049,2]
[323104876,1713665453808,-2183.0791738,0.00019049,2]
[323104877,1713665453956,-17722.4931764,0.00017001,2]
[323104960,1713666553132,-371.79860069,0.000137,2]
[323104964,1713666632567,-615.69,0.00014529,2]
[323104965,1713666632577,-158.69930925,0.000149,2]
[323104966,1713666632587,-2415.6236,0.000149,2]
[323104967,1713666632597,-5000.0,0.00015,2]
[323104968,1713666632607,-500.0,0.00015,2]
[323104969,1713666632616,-239.5,0.00015976,2]
[323104970,1713666632625,-200.0,0.00015978,2]
[323104971,1713666632634,-164.09,0.00016027,2]
[323104972,1713666632643,-920.51,0.00016029,2]
[323104973,1713666632652,-250.0,0.00016067,2]
[323104974,1713666632661,-355.18,0.00016221,2]
[323104975,1713666632671,-480.56,0.00016294,2]
[323104976,1713666632682,-395.33,0.00016357,2]
[323104977,1713666632691,-656.79,0.00016361,2]
[323104978,1713666632701,-203.9,0.00016436,2]
[323104979,1713666632710,-1223.72968637,0.000165,2]
[323104980,1713666632722,-150.0,0.000166,2]
[323104981,1713666632731,-167.98872195,0.0001666,2]
[323104982,1713666632742,-591.50860375,0.0001666,2]
[323104983,1713666632751,-1144.60738523,0.00016661,2]
[323104984,1713666632760,-615.69,0.00016793,2]
[323104985,1713666632770,-7767.6770067,0.000169,2]
[323104986,1713666632797,-2860.05293991,0.000169,2]
[323104987,1713666632889,-2183.7396,0.000169,2]
[323105034,1713666638011,-64496.36215375,0.000169,2]
[323105035,1713666638023,-292.22399412,0.000169,2]
[323105036,1713666638036,-3240.20759712,0.000169,2]
[323105037,1713666638048,-1742.78044906,0.000169,2]
[323105213,1713666639909,-520.69620166,0.000169,2]
[323105215,1713666639919,-2433.98319452,0.00016901,2]
[323105226,1713666640019,-251.44760915,0.00016901,2]
[323105239,1713666640132,-975.17333252,0.00016901,2]
[323105241,1713666640143,-5543.72346388,0.00016901,2]
[323105243,1713666640155,-795.67239993,0.00016901,2]
[323105245,1713666640164,-641.08963076,0.00016901,2]
[323105248,1713666640175,-358.91036924,0.00016901,2]
[323105250,1713666640184,-425.7426,0.00016901,2]
[323105252,1713666640193,-155.23543242,0.00016999,2]
[323105254,1713666640202,-317.44251859,0.00017,2]
[323105256,1713666640211,-500.0,0.00017,2]
[323105257,1713666640220,-305.30557975,0.00017,2]
[323105334,1713666642797,-194.69442025,0.00017,2]
[323105335,1713666642806,-500.0,0.00017,2]
[323105336,1713666642815,-143.24189259,0.00017,2]
[323105337,1713666642972,-9.76176859,0.00017,2]
[323105338,1713666642992,-346.99633882,0.00017,2]
[323105339,1713666643001,-105.86938689,0.00017,2]
[323105340,1713666643025,-411.40058407,0.00017,2]
[323105341,1713666643034,-497.8195261,0.00017,2]
[323105342,1713666643043,-503.49656218,0.00017,2]
[323105343,1713666643052,-530.46209702,0.00017,2]
[323105344,1713666643061,-514.05255579,0.00017,2]
[323105345,1713666643070,-504.34548838,0.00017,2]
[323105346,1713666643079,-591.87341718,0.00017,2]
[323105347,1713666643088,-221.23430384,0.00017,2]
[323105348,1713666643096,-449.60560892,0.00017,2]
[323105349,1713666643105,-502.76350698,0.00017,2]
[323105350,1713666643114,-500.49592637,0.00017,2]
[323105351,1713666643123,-502.38621685,0.00017,2]
[323105352,1713666643132,-562.67,0.00017,2]
[323105353,1713666643141,-500.0,0.00017,2]
[323105354,1713666643149,-500.0,0.00017,2]
[323105355,1713666643158,-500.0,0.00017,2]
[323105356,1713666643167,-503.75822884,0.00017,2]
[323105357,1713666643176,-564.32383631,0.00017,2]
[323105359,1713666643185,-503.04299225,0.00017,2]
[323105361,1713666643194,-503.5306318,0.00017,2]
[323105362,1713666643203,-504.00048718,0.00017,2]
[323105363,1713666643212,-500.0,0.00017,2]
[323105364,1713666643220,-524.483607,0.00017,2]
[323105365,1713666643230,-666.83,0.00017,2]
[323105366,1713666643239,-500.0,0.00017,2]
[323105368,1713666643249,-500.0,0.00017,2]
[323105370,1713666643257,-500.0,0.00017,2]
[323105371,1713666643267,-500.0,0.00017,2]
[323105372,1713666643276,-500.0,0.00017,2]
[323105373,1713666643286,-508.7459679,0.00017,2]
[323105374,1713666643295,-2951.99,0.00017,2]
[323105375,1713666643305,-507.5137615,0.00017,2]
[323105376,1713666643314,-500.54926885,0.00017,2]
[323105377,1713666643325,-500.0,0.00017,2]
[323105378,1713666643334,-501.29040895,0.00017,2]
[323105379,1713666643343,-39980.12313854,0.00017001,2]
[323105380,1713666643352,-167.3837739,0.00017001,2]
[323105381,1713666643361,-500.0,0.00017001,2]
[323105382,1713666643370,-498.82988963,0.00017001,2]
[323105383,1713666643379,-500.0,0.00017001,2]
[323105384,1713666643391,-399.0,0.00017044,2]
[323105385,1713666643402,-1463.916,0.00017044,2]
[323105386,1713666643412,-214.0,0.00017044,2]
[323105387,1713666643421,-1118.35,0.00017044,2]
[323105388,1713666643431,-443.0,0.00017044,2]
[323105389,1713666643440,-195.0,0.00017044,2]
[323105390,1713666643449,-969.0,0.00017044,2]
[323105391,1713666643458,-1392.439,0.00017044,2]
[323105392,1713666643469,-461.0,0.00017044,2]
[323105393,1713666643480,-2232.971,0.00017044,2]
[323105394,1713666643490,-1228.0,0.00017044,2]
[323105395,1713666643702,-252.108,0.00017044,2]
[323105396,1713666643712,-500.0,0.00017272,2]
[323105397,1713666643722,-572.6,0.00017272,2]
[323105398,1713666643733,-500.0,0.00017272,2]
[323105399,1713666643743,-500.0,0.00017272,2]
[323105400,1713666643753,-1270.91,0.00017272,2]
[323105401,1713666643762,-680.54,0.00017272,2]
[323105402,1713666643771,-676.78,0.00017272,2]
[323105403,1713666643780,-1766.88,0.00017272,2]
[323105404,1713666643789,-500.0,0.00017272,2]
[323105405,1713666643798,-500.0,0.00017272,2]
[323105406,1713666643807,-500.0,0.00017272,2]
[323105407,1713666643818,-500.0,0.00017272,2]
[323105408,1713666643827,-500.0,0.00017272,2]
[323105409,1713666643837,-500.0,0.00017272,2]
[323105410,1713666643846,-500.0,0.00017272,2]
[323105411,1713666643855,-500.0,0.00017272,2]
[323105412,1713666643864,-500.0,0.00017272,2]
[323105413,1713666643873,-962.18,0.00017272,2]
[323105414,1713666643882,-500.0,0.00017272,2]
[323105415,1713666643891,-642.48,0.00017272,2]
[323105416,1713666643901,-500.0,0.00017272,2]
[323105417,1713666643910,-500.0,0.00017272,2]
[323105418,1713666643920,-500.0,0.00017272,2]
[323105419,1713666643931,-1133.82038746,0.00017273,2]
[323105420,1713666643941,-646.69,0.00017273,2]
[323105421,1713666643951,-683.76,0.00017273,2]
[323105422,1713666643961,-500.0,0.00017273,2]
[323105423,1713666643972,-500.0,0.00017273,2]
[323105424,1713666643982,-500.0,0.00017273,2]
[323105425,1713666643992,-500.0,0.00017273,2]
[323105426,1713666644001,-500.0,0.00017273,2]
[323105427,1713666644010,-500.0,0.00017273,2]
[323105428,1713666644021,-500.0,0.00017273,2]
[323105429,1713666644030,-500.0,0.00017273,2]
[323105430,1713666644040,-500.0,0.00017273,2]
[323105431,1713666644049,-500.0,0.00017273,2]
[323105432,1713666644058,-556.73959692,0.00017273,2]
[323105433,1713666644068,-500.0,0.00017273,2]
[323105434,1713666644077,-500.0,0.00017273,2]
[323105435,1713666644087,-500.0,0.00017273,2]
[323105436,1713666644096,-500.0,0.00017273,2]
[323105437,1713666644105,-500.0,0.00017273,2]
[323105438,1713666644114,-500.0,0.00017273,2]
[323105439,1713666644123,-637.81,0.00017273,2]
[323105440,1713666644132,-500.0,0.00017273,2]
[323105441,1713666644142,-500.0,0.00017273,2]
[323105442,1713666644151,-879.77,0.00017273,2]
[323105443,1713666644160,-647.3,0.00017273,2]
[323105444,1713666644170,-537.49,0.00017273,2]
[323105445,1713666644180,-500.0,0.00017273,2]
[323105446,1713666644189,-500.0,0.00017273,2]
[323105447,1713666644198,-707.4,0.00017273,2]
[323105448,1713666644207,-900.23,0.00017273,2]
[323105449,1713666644217,-500.0,0.00017273,2]
[323105450,1713666644227,-500.0,0.00017273,2]
[323105451,1713666644236,-500.0,0.00017273,2]
[323105452,1713666644246,-500.0,0.00017273,2]
[323105453,1713666644254,-500.0,0.00017273,2]
[323105454,1713666644266,-500.0,0.00017273,2]
[323105455,1713666644276,-717.14,0.00017273,2]
[323105456,1713666644285,-525.84,0.00017273,2]
[323105457,1713666644295,-1521.63,0.00017273,2]
[323105458,1713666644304,-500.0,0.00017273,2]
[323105459,1713666644314,-534.45,0.00017273,2]
[323105460,1713666644324,-500.0,0.00017273,2]
[323105461,1713666644335,-500.0,0.00017273,2]
[323105462,1713666644344,-2529.71,0.00017273,2]
[323105463,1713666644354,-500.0,0.00017273,2]
[323105464,1713666644364,-500.0,0.00017273,2]
[323105465,1713666644376,-500.0,0.00017273,2]
[323105466,1713666644389,-500.0,0.00017273,2]
[323105467,1713666644399,-500.0,0.00017273,2]
[323105468,1713666644408,-500.0,0.00017273,2]
[323105469,1713666644417,-500.0,0.00017273,2]
[323105470,1713666644426,-986.7,0.00017273,2]
[323105471,1713666644436,-1836.21,0.00017273,2]
[323105472,1713666644445,-520.71,0.00017273,2]
[323105473,1713666644455,-2680.2,0.00017273,2]
[323105474,1713666644464,-595.88082472,0.00017273,2]
[323105475,1713666644477,-153.73226367,0.00017273,2]
[323105476,1713666644487,-500.0,0.00017273,2]
[323105477,1713666644497,-500.0,0.00017273,2]
[323105478,1713666644513,-500.0,0.00017273,2]
[323105479,1713666644523,-500.0,0.00017273,2]
[323105480,1713666644532,-691.76,0.00017273,2]
[323105481,1713666644541,-500.0,0.00017273,2]
[323105482,1713666644551,-500.0,0.00017273,2]
[323105483,1713666644562,-500.0,0.00017273,2]
[323105484,1713666644571,-500.0,0.00017273,2]
[323105485,1713666644580,-500.0,0.00017273,2]
[323105486,1713666644589,-500.0,0.00017273,2]
[323105487,1713666644598,-596.76,0.00017273,2]
[323105488,1713666644607,-500.0,0.00017273,2]
[323105489,1713666644616,-2062.15,0.00017273,2]
[323105490,1713666644625,-500.0,0.00017273,2]
[323105491,1713666644634,-3328.62,0.00017273,2]
[323105492,1713666644643,-500.0,0.00017273,2]
[323105493,1713666644652,-500.0,0.00017273,2]
[323105494,1713666644662,-500.0,0.00017273,2]
[323105495,1713666644671,-500.0,0.00017273,2]
[323105496,1713666644680,-500.0,0.00017274,2]
[323105497,1713666644689,-500.0,0.00017274,2]
[323105498,1713666644698,-500.0,0.00017274,2]
[323105499,1713666644707,-158.03744035,0.00017274,2]
[323105500,1713666644716,-500.0,0.00017274,2]
[323105501,1713666644727,-500.0,0.00017274,2]
[323105502,1713666644735,-500.0,0.00017274,2]
[323105503,1713666644744,-180.75601475,0.00017274,2]
[323105504,1713666644755,-666.83,0.00017274,2]
[323105505,1713666644764,-500.0,0.00017274,2]
[323105506,1713666644774,-500.0,0.00017274,2]
[323105507,1713666644783,-500.0,0.00017274,2]
[323105508,1713666644792,-500.0,0.00017274,2]
[323105509,1713666644801,-573.43024425,0.00017274,2]
[323105510,1713666644810,-500.0,0.00017274,2]
[323105511,1713666644819,-673.18768875,0.00017447,2]
[323105512,1713666644828,-500.0,0.00017546,2]
[323105513,1713666644837,-572.6,0.00017546,2]
[323105514,1713666644847,-500.0,0.00017546,2]
[323105515,1713666644856,-500.0,0.00017546,2]
[323105516,1713666644866,-1270.91,0.00017546,2]
[323105517,1713666644875,-680.54,0.00017546,2]
[323105518,1713666644884,-676.78,0.00017546,2]
[323105519,1713666644894,-1766.88,0.00017546,2]
[323105520,1713666644904,-500.0,0.00017546,2]
[323105521,1713666644913,-500.0,0.00017546,2]
[323105522,1713666644923,-500.0,0.00017546,2]
[323105523,1713666644932,-500.0,0.00017546,2]
[323105524,1713666644941,-500.0,0.00017546,2]
[323105525,1713666644950,-500.0,0.00017546,2]
[323105526,1713666644959,-500.0,0.00017546,2]
[323105527,1713666644968,-500.0,0.00017546,2]
[323105528,1713666644979,-500.0,0.00017546,2]
[323105529,1713666644989,-962.18,0.00017546,2]
[323105530,1713666644998,-500.0,0.00017546,2]
[323105531,1713666645007,-642.48,0.00017546,2]
[323105532,1713666645016,-500.0,0.00017546,2]
[323105533,1713666645026,-500.0,0.00017546,2]
[323105534,1713666645035,-500.0,0.00017546,2]
[323105535,1713666645045,-646.69,0.00017547,2]
[323105536,1713666645055,-683.76,0.00017547,2]
[323105537,1713666645064,-500.0,0.00017547,2]
[323105538,1713666645073,-500.0,0.00017547,2]
[323105539,1713666645082,-500.0,0.00017547,2]
[323105540,1713666645091,-500.0,0.00017547,2]
[323105541,1713666645101,-500.0,0.00017547,2]
[323105542,1713666645110,-441.62320329,0.00017547,2]
[323105543,1713666645120,-533.28115733,0.00017547,2]
[323105544,1713666645129,-500.0,0.00017547,2]
[323105545,1713666645139,-500.0,0.00017547,2]
[323105546,1713666645149,-500.0,0.00017547,2]
[323105547,1713666645158,-500.0,0.00017547,2]
[323105548,1713666645168,-500.0,0.00017547,2]
[323105549,1713666645178,-500.0,0.00017547,2]
[323105550,1713666645187,-637.81,0.00017547,2]
[323105551,1713666645197,-500.0,0.00017547,2]
[323105552,1713666645207,-558.60373992,0.00017547,2]
[323105553,1713666645217,-879.77,0.00017547,2]
[323105554,1713666645228,-647.3,0.00017547,2]
[323105555,1713666645238,-537.49,0.00017547,2]
[323105556,1713666645247,-500.0,0.00017547,2]
[323105557,1713666645257,-500.0,0.00017547,2]
[323105558,1713666645267,-707.4,0.00017547,2]
[323105559,1713666645277,-900.23,0.00017547,2]
[323105560,1713666645287,-500.0,0.00017547,2]
[323105561,1713666645296,-500.0,0.00017547,2]
[323105562,1713666645307,-500.0,0.00017547,2]
[323105563,1713666645316,-500.0,0.00017547,2]
[323105564,1713666645326,-500.0,0.00017547,2]
[323105565,1713666645335,-500.0,0.00017547,2]
[323105566,1713666645346,-717.14,0.00017547,2]
[323105567,1713666645355,-525.84,0.00017547,2]
[323105568,1713666645365,-1521.63,0.00017547,2]
[323105569,1713666645374,-500.0,0.00017547,2]
[323105570,1713666645384,-534.45,0.00017547,2]
[323105571,1713666645395,-500.0,0.00017547,2]
[323105572,1713666645404,-500.0,0.00017547,2]
[323105573,1713666645413,-2529.71,0.00017547,2]
[323105574,1713666645423,-500.0,0.00017547,2]
[323105575,1713666645432,-500.0,0.00017547,2]
[323105576,1713666645441,-500.0,0.00017547,2]
[323105577,1713666645451,-500.0,0.00017547,2]
[323105578,1713666645460,-500.0,0.00017547,2]
[323105579,1713666645470,-500.0,0.00017547,2]
[323105580,1713666645481,-500.0,0.00017547,2]
[323105581,1713666645491,-986.7,0.00017547,2]
[323105582,1713666645500,-1836.21,0.00017547,2]
[323105583,1713666645509,-2680.2,0.00017547,2]
[323105584,1713666645519,-500.0,0.00017547,2]
[323105585,1713666645528,-500.0,0.00017547,2]
[323105586,1713666645538,-500.0,0.00017547,2]
[323105587,1713666645547,-500.0,0.00017547,2]
[323105588,1713666645557,-691.76,0.00017547,2]
[323105590,1713666645567,-500.0,0.00017547,2]
[323105592,1713666645576,-500.0,0.00017547,2]
[323105593,1713666645586,-500.0,0.00017547,2]
[323105594,1713666645595,-500.0,0.00017547,2]
[323105595,1713666645604,-500.0,0.00017547,2]
[323105596,1713666645614,-500.0,0.00017547,2]
[323105598,1713666645623,-596.76,0.00017547,2]
[323105599,1713666645633,-500.0,0.00017547,2]
[323105600,1713666645642,-2062.15,0.00017547,2]
[323105601,1713666645652,-500.0,0.00017547,2]
[323105602,1713666645661,-3328.62,0.00017547,2]
[323105603,1713666645671,-500.0,0.00017547,2]
[323105604,1713666645681,-500.0,0.00017547,2]
[323105605,1713666645690,-500.0,0.00017548,2]
[323105606,1713666645700,-399.88018255,0.00017548,2]
[323105607,1713666645709,-500.0,0.00017548,2]
[323105608,1713666645718,-500.0,0.00017548,2]
[323105609,1713666645729,-500.0,0.00017548,2]
[323105610,1713666645739,-565.47866658,0.00017548,2]
[323105611,1713666645748,-666.83,0.00017548,2]
[323105612,1713666645758,-500.0,0.00017548,2]
[323105613,1713666645768,-500.0,0.00017548,2]
[323105614,1713666645777,-250.50879733,0.00017548,2]
[323105615,1713666645787,-500.0,0.00017548,2]
[323105616,1713666645796,-500.0,0.00017548,2]
[323105617,1713666645805,-500.0,0.0001782,2]
[323105618,1713666645814,-572.6,0.0001782,2]
[323105619,1713666645824,-500.0,0.0001782,2]
[323105620,1713666645833,-500.0,0.0001782,2]
[323105621,1713666645842,-1270.91,0.0001782,2]
[323105622,1713666645853,-680.54,0.0001782,2]
[323105623,1713666645862,-676.78,0.0001782,2]
[323105624,1713666645871,-1766.88,0.0001782,2]
[323105625,1713666645880,-500.0,0.0001782,2]
[323105626,1713666645890,-500.0,0.0001782,2]
[323105627,1713666645899,-500.0,0.0001782,2]
[323105628,1713666645908,-500.0,0.0001782,2]
[323105629,1713666645918,-500.0,0.0001782,2]
[323105630,1713666645928,-500.0,0.0001782,2]
[323105631,1713666645938,-500.0,0.0001782,2]
[323105632,1713666645948,-500.0,0.0001782,2]
[323105633,1713666645957,-500.0,0.0001782,2]
[323105634,1713666645968,-962.18,0.0001782,2]
[323105635,1713666645979,-500.0,0.0001782,2]
[323105636,1713666645990,-642.48,0.0001782,2]
[323105637,1713666646000,-500.0,0.0001782,2]
[323105638,1713666646009,-500.0,0.0001782,2]
[323105639,1713666646019,-495.94260279,0.0001782,2]
[323105640,1713666646239,-404.0,0.00016999,2]
[323105641,1713666646392,-324.92839964,0.00016999,2]
[323105642,1713666686830,156.78292724,0.00013499,2]
[323105647,1713667663207,802.0,0.00017,10]
[323105669,1713667831870,-213.89673121,0.00014421,2]
[323105671,1713667831879,-60.960183,0.00014422,2]